[Event "Romanian Superleague 2022"]
[Site "Oradea"]
[Date "2022.09.25"]
[Round "5.27"]
[White "Istratescu, Andrei"]
[Black "Mendonca, Leon Luke"]
[Result "0-1"]
[ECO "D37"]
[WhiteElo "2408"]
[BlackElo "2558"]
[Annotator "RC"]
[PlyCount "134"]
[EventDate "2022.09.21"]
[EventType "team-tourn"]
[EventCountry "ROU"]
[SourceTitle "playchess.com"]
[Source "ChessBase"]
[SourceQuality "1"]
[TimeControl "40/5400+30:1800+30"]

1. d4 {[%emt 0:00:03]} Nf6 {[%emt 0:00:18]} 2. c4 {[%emt 0:00:12]} e6 {[%emt 0:00:06]} 3. Nf3 {[%emt 0:00:27]} d5 {[%emt 0:00:15]} 4. Nc3 {[%emt 0:00:15]} a6 {[%emt 0:00:38]} 5. cxd5 {[%emt 0:11:19]} exd5 {[%emt 0:00:09]} 6. Bg5 {[%emt 0:09:31]} Be6 {[%emt 0:00:24]} 7. e3 {[%emt 0:04:50]} Nbd7 {[%emt 0:00:46]} 8. Bd3 {[%emt 0:01:57]} Bd6 {[%emt 0:00:43]} 9. Qc2 {[%emt 0:02:33]} c6 {[%emt 0:06:26]} 10. Bf4 {[%emt 0:10:18]} Qc7 {[%emt 0:02:25]} 11. Bxd6 {[%emt 0:00:20]} Qxd6 {[%emt 0:00:06]} 12. O-O {[%emt 0:00:22]} O-O {[%emt 0:05:38]} 13. a3 {[%emt 0:04:22]} Bg4 {[%emt 0:02:01]} 14. Nd2 {[%emt 0:01:28]} Bh5 {[%emt 0:00:55]} 15. Rfe1 {[%emt 0:03:29]} Bg6 {[%emt 0:03:34]} 16. h3 {[%emt 0:04:50]} Rfe8 {[%emt 0:01:47]} 17. Rac1 {[%emt 0:03:44]} a5 {[%emt 0:18:54]} 18. Na4 {[%emt 0:03:00]} Re6 {[%emt 0:05:41]} 19. Qb3 {[%emt 0:04:09]} b5 {[%emt 0:11:01]} 20. Nc5 {[%emt 0:00:35]} Nxc5 {[%emt 0:00:08]} 21. Rxc5 {[%emt 0:33:16]} Nd7 {[%emt 0:00:25]} 22. Rcc1 {[%emt 0:00:00]} Nb6 {[%emt 0:04:23]} 23. Bxg6 {[%emt 0:00:00]} hxg6 {[%emt 0:01:45]} 24. Qc2 {[%emt 0:00:00]} Rae8 {[%emt 0:04:28]} 25. Qc5 {[%emt 0:00:00]} Qb8 {[%emt 0:04:40]} 26. b3 {[%emt 0:00:00]} a4 {[%emt 0:01:50]} 27. bxa4 {[%emt 0:00:00]} Nxa4 {[%emt 0:00:06]} 28. Qb4 {[%emt 0:00:00]} Qa7 {[%emt 0:17:42]} 29. Nb3 {[%emt 0:00:00]} Ra8 {[%emt 0:01:28]} 30. Re2 {[%emt 0:00:00]} Nb6 {[%emt 0:01:41]} 31. Nc5 {[%emt 0:00:00]} Ree8 {[%emt 0:02:14]} 32. Ra2 {[%emt 0:00:00]} Qe7 {[%emt 0:01:00]} 33. Qb3 {[%emt 0:00:00]} Ra5 {[%emt 0:01:24]} 34. Nd3 {[%emt 0:00:00]} Nc4 {[%emt 0:00:38]} 35. a4 {[%emt 0:00:00]} Rea8 {[%emt 0:00:40]} 36. Rca1 {[%emt 0:00:00]} Qa7 {[%emt 0:01:24]} 37. Nc5 {[%emt 0:00:00]} Nb6 {[%emt 0:00:37]} 38. Qc2 {[%emt 0:00:00]} bxa4 {[%emt 0:00:38]} 39. Ra3 {[%emt 0:00:00]} Qc7 {[%emt 0:00:29]} 40. g3 {[%emt 0:00:00]} Qc8 {[%emt 0:00:00]} 41. Kg2 {[%emt 0:00:26]} Qc7 {[%emt 0:06:32]} 42. h4 {[%emt 0:04:33]} Qe7 {[%emt 0:03:59]} 43. Qe2 {[%emt 0:06:51]} Qf6 {[%emt 0:06:36]} 44. Qg4 {[%emt 0:05:36]} Kh7 {[%emt 0:03:48]} 45. R1a2 {[%emt 0:03:27]} Rb5 {[%emt 0:00:55]} 46. Qe2 {[%emt 0:02:21]} Qf5 {[%emt 0:02:03]} 47. Ra1 {[%emt 0:03:39]} Rba5 {[%emt 0:05:46]} 48. R1a2 {[%emt 0:02:00]} Kh8 {[%emt 0:01:21]} 49. Ra1 {[%emt 0:00:23]} Kg8 {[%emt 0:00:02]} 50. R1a2 {[%emt 0:00:08]} g5 {[%emt 0:01:46]} 51. hxg5 {[%emt 0:02:59]} Qxg5 {[%emt 0:00:01]} 52. Qc2 {[%emt 0:00:12]} Qe7 {[%emt 0:00:51]} 53. Ra1 {[%emt 0:01:17]} g6 {[%emt 0:00:36]} 54. Qe2 {[%emt 0:03:16]} Qg5 {[%emt 0:01:45]} 55. Qc2 {[%emt 0:01:15]} Qe7 {[%emt 0:01:18]} 56. Qe2 {[%emt 0:00:11]} Kg7 {[%emt 0:01:08]} 57. Qg4 {[%emt 0:00:44]} Rh8 {[%emt 0:00:10]} 58. Rh1 {[%emt 0:00:07]} Rxh1 {[%emt 0:01:26]} 59. Kxh1 {[%emt 0:09:35]} Rb5 {[%emt 0:00:00]} 60. Kg2 {[%emt 0:00:00]} Rb2 {[%emt 0:00:01]} 61. Qf4 {[%emt 0:00:00]} Nc4 {[%emt 0:00:25]} 62. Rxa4 {[%emt 0:00:00]} Nxe3+ {[%emt 0:00:58]} 63. Kg1 {[%emt 0:00:00]} Ng4 {[%emt 0:00:33]} 64. Nd3 {[%emt 0:00:00]} Rb1+ {[%emt 0:00:13]} 65. Kg2 {[%emt 0:00:00]} Qe2 {[%emt 0:00:19]} 66. Ra7 {[%emt 0:00:00]} Qf1+ {[%emt 0:00:18]} 67. Kf3 {[%emt 0:00:00]} Qd1+ {[%emt 0:00:20]} 0-1

[Event "Romanian Superleague 2022"]
[Site "Oradea"]
[Date "2022.09.25"]
[Round "5.28"]
[White "Ghimpu, Samuel-Timotei"]
[Black "Vedmediuc, Serghei"]
[Result "1/2-1/2"]
[ECO "D11"]
[WhiteElo "2434"]
[BlackElo "2430"]
[Annotator "TA"]
[PlyCount "142"]
[EventDate "2022.09.21"]
[EventType "team-tourn"]
[EventCountry "ROU"]
[SourceTitle "playchess.com"]
[Source "ChessBase"]
[SourceQuality "1"]
[TimeControl "40/5400+30:1800+30"]

{[%evp 9,142,8,8,11,15,2,9,15,16,-15,0,16,13,0,16,16,8,9,14,14,56,58,58,65,53,53,85,94,75,18,16,6,7,0,7,-8,-6,-37,-18,-18,-20,-16,-14,-14,-15,-42,-34,-55,-59,-53,-51,-69,-43,-39,-44,-50,-17,-20,0,0,0,-48,0,0,0,0,0,0,0,0,0,-8,0,-10,0,-8,-8,-8,-8,-36,-8,-8,0,0,0,0,0,0,0,0,0,0,0,0,0,0,0,0,0,0,0,-8,-8,-8,-8,-8,-8,-8,-8,-8,-8,-8,-8,-8,0,-8,-8,-8,-8,-8,-8,-8,-8,-8,-8,-8,-8,-8,-8,-8,-8,-8,-8,-8,-8]} 1. d4 {[%emt 0:00:21]} d5 {[%emt 0:00:16]} 2. Nf3 {[%emt 0:00:27]} Nf6 {[%emt 0:00:16]} 3. c4 {[%emt 1:31:12]} c6 4. g3 {[%emt 0:00:00]} Bf5 {[%emt 0:02:18]} 5. Nc3 {[%emt 0:00:00]} e6 {[%emt 0:00:16]} 6. Qb3 {[%emt 0:00:00] D11: Slav Defence: 3 Nf3 sidelines and 3...Nf6 4 e3 Bg4.} Qb6 {[%emt 0:38:01]} 7. c5 {[%emt 0:00:00]} Qxb3 {[%emt 0:00:06]} 8. axb3 {[%emt 0:00:00]} Be7 {[%emt 0:00:08]} 9. b4 {[%emt 0:00:00]} O-O {[%emt 0:00:08]} (9... Na6 $5 {[%cal Ra6b4]}) 10. Bf4 {[%emt 0:00:00]} h6 {[%emt 0:17:12]} 11. h4 {[%emt 0:00:00]} a6 {[%emt 0:04:11]} 12. e3 {[%emt 0:00:00]} Nbd7 {[%emt 0:00:22]} 13. Be2 {[%emt 0:00:00] [#]} Ne4 $146 {[%emt 0:07:45]} ({Predecessor:} 13... Rfe8 14. Ne5 Nxe5 15. Bxe5 Nd7 16. g4 Bh7 17. Bc7 Bf6 18. f4 g5 19. hxg5 hxg5 {½-½ (73) Prozorovsky,V (2465)-Mirkowski,P (2425) ICCF email 2019}) 14. Rg1 {[%emt 0:00:00]} (14. Ne5 {keeps more tension.} Nxe5 15. Bxe5 f6 16. Bc7) 14... Nxc3 {[%emt 0:10:09]} 15. bxc3 {[%emt 0:00:00]} Bg4 {[%emt 0:00:01]} 16. Nd2 {[%emt 0:00:00]} Bxe2 {[%emt 0:00:09]} 17. Kxe2 {[%emt 0:00:00]} g5 {[%emt 0:03:09]} 18. hxg5 {[%emt 0:07:30]} hxg5 {[%emt 0:00:03]} 19. Nb3 {[%emt 0:00:00] White is more active.} (19. Bc7 $16) 19... Kg7 $11 {[%emt 0:07:38]} (19... gxf4 $2 20. gxf4+ Kh8 21. Rg3 $18) 20. Bd6 {[%emt 0:00:00]} Bxd6 {[%emt 0:00:53]} 21. cxd6 {[%emt 0:00:00]} Nf6 {[%emt 0:00:36]} 22. Nc5 {[%emt 0:00:00][%cal Bb3c5,Bc5a6,Ba6b4][%mdl 32]} b6 {[%emt 0:00:58]} 23. Nxa6 {[%emt 0:00:00]} Rfd8 {[%emt 0:00:04]} 24. b5 {[%emt 0:00:00]} Rxd6 {[%emt 0:01:35]} 25. Nb4 $1 {[%emt 0:00:00][%csl LRa8,LRc6]} Rxa1 {[%emt 0:00:09]} 26. Rxa1 {[%emt 0:00:00]} cxb5 {[%emt 0:00:14][%mdl 4096] Endgame KRN-KRN} 27. g4 {[%emt 0:00:00]} Ne4 {[%emt 0:03:25]} 28. Rc1 {[%emt 0:00:00]} Rd8 {[%emt 0:00:05]} 29. f3 {[%emt 0:00:00]} Nd6 {[%emt 0:00:10]} 30. Rh1 {[%emt 0:00:00]} Nc4 {[%emt 0:01:25]} 31. e4 {[%emt 0:00:00]} dxe4 {[%emt 0:01:01]} 32. fxe4 {[%emt 0:07:00]} f6 {[%emt 0:03:47]} 33. Ra1 $1 {[%emt 0:00:00]} Rd7 {[%emt 0:00:00]} 34. Ra8 {[%emt 0:00:00]} Rc7 {[%emt 0:00:00]} 35. Ra1 {[%emt 0:00:00]} (35. Re8 $11 {is more appropriate.}) 35... Rd7 {[%emt 0:00:00]} (35... Kg6 $15 {was preferrable.} 36. Rh1 Ra7) 36. Ra8 {[%emt 0:00:00]} Rc7 {[%emt 0:00:00]} 37. Re8 {[%emt 0:00:00]} Kf7 {[%emt 0:00:00]} 38. Rh8 {[%emt 0:00:00] [#] Hoping for Rh7+.} Ke7 {[%emt 0:00:00]} 39. Rh6 {[%emt 0:00:00]} Nd6 {[%emt 0:00:00][%csl LRc3,LRe4]} 40. Kd3 {[%emt 0:00:00]} Nf7 {[%emt 0:00:00]} 41. Rh1 {[%emt 0:11:36]} Rd7 {[%emt 0:19:52]} 42. Ke2 {[%emt 0:00:30]} Kf8 {[%emt 0:00:30]} 43. Ra1 {[%emt 0:00:30]} Rc7 {[%emt 0:00:30]} 44. Ra3 {[%emt 0:00:30]} Nd6 {[%emt 0:00:30]} 45. Kd3 {[%emt 0:00:30] The position is equal.} Rh7 {[%emt 0:00:30] [#] And now ...Rh3+ would win.} 46. Ra8+ {[%emt 0:00:30]} Kf7 {[%emt 0:00:30] White must now prevent ...Rh3+.} 47. Ra7+ {[%emt 0:00:30]} Kg6 {[%emt 0:00:30]} 48. Rxh7 {[%emt 0:00:30]} Kxh7 {[%emt 0:00:30] KN-KN} 49. Nc6 {[%emt 0:00:30]} Kg6 {[%emt 0:00:30]} 50. e5 {[%emt 0:00:30]} Nc4 {[%emt 0:08:57]} 51. exf6 {[%emt 0:15:18]} Kxf6 {[%emt 0:00:08]} 52. Ke4 {[%emt 0:00:27]} Nd6+ {[%emt 0:01:29]} 53. Kd3 {[%emt 0:01:09]} Kf7 {[%emt 0:00:50]} 54. Ke3 {[%emt 0:00:14]} Ne8 {[%emt 0:01:28]} 55. Ne5+ {[%emt 0:01:17]} Ke7 {[%emt 0:00:08]} 56. Nf3 {[%emt 0:00:07]} Nf6 {[%emt 0:01:56]} 57. Nxg5 {[%emt 0:00:13]} Nxg4+ {[%emt 0:00:02]} 58. Kd3 {[%emt 0:01:14]} Kd6 {[%emt 0:00:18]} 59. c4 {[%emt 0:01:25]} bxc4+ {[%emt 0:01:27]} 60. Kxc4 {[%emt 0:00:02]} Nf6 {[%emt 0:00:43]} 61. Kb5 {[%emt 0:00:11]} Nd7 {[%emt 0:00:21]} 62. Nf7+ {[%emt 0:01:26]} Kc7 {[%emt 0:00:15]} 63. Ng5 {[%emt 0:02:23]} Nf8 {[%emt 0:00:08]} 64. Nh3 {[%emt 0:01:16]} Ng6 {[%emt 0:00:08]} 65. Ng5 {[%emt 0:00:01]} Nf4 {[%emt 0:00:13]} 66. Kc4 {[%emt 0:01:09]} Kd6 {[%emt 0:01:44]} 67. Kb5 {[%emt 0:00:07]} Nd5 {[%emt 0:00:33]} 68. Nxe6 {[%emt 0:00:07]} Kxe6 {[%emt 0:00:24]} 69. Kc6 {[%emt 0:00:01]} Ne7+ {[%emt 0:00:40]} 70. Kxb6 {[%emt 0:00:04]} Kd5 {[%emt 0:00:04]} 71. Kc7 {[%emt 0:00:02]} Kxd4 {[%emt 0:00:15] Weighted Error Value: White=0.07 (flawless) /Black=0.06 (flawless)} 1/2-1/2

[Event "Romanian Superleague 2022"]
[Site "Oradea"]
[Date "2022.09.25"]
[Round "5.29"]
[White "Manea, Alexandru"]
[Black "David, Alexandru-Vasile"]
[Result "1/2-1/2"]
[ECO "C00"]
[WhiteElo "2326"]
[BlackElo "2417"]
[Annotator "TA"]
[PlyCount "94"]
[EventDate "2022.09.21"]
[EventType "team-tourn"]
[EventCountry "ROU"]
[SourceTitle "playchess.com"]
[Source "ChessBase"]
[SourceQuality "1"]
[TimeControl "40/5400+30:1800+30"]

{[%evp 22,94,-7,-8,-12,-11,-11,-8,-5,-12,-13,-18,-13,-25,-31,-54,-41,-39,-37,-52,-51,-57,-30,-42,0,0,15,12,123,118,124,125,122,120,131,120,156,144,141,145,258,232,262,189,179,187,189,189,189,188,178,173,178,169,248,215,232,214,347,247,320,320,298,169,230,59,168,0,235,0,295,222,305,0,218]} 1. Nf3 {[%emt 0:00:07]} d5 {[%emt 0:00:16]} 2. g3 {[%emt 0:00:08]} e6 {[%emt 0:00:16]} 3. Bg2 {[%emt 0:00:17]} b6 {[%emt 0:00:08]} 4. O-O {[%emt 0:05:58]} Bb7 {[%emt 0:00:47]} 5. d3 {[%emt 0:01:33]} Nf6 {[%emt 0:01:10]} 6. Nbd2 {[%emt 0:00:13]} Be7 {[%emt 0:01:17]} 7. e4 {[%emt 0:00:12]} O-O {[%emt 0:03:57]} 8. e5 {[%emt 0:01:48]} Nfd7 {[%emt 0:00:21]} 9. Re1 {[%emt 0:03:25]} c5 {[%emt 0:00:52]} 10. Nf1 {[%emt 0:01:59]} Nc6 {[%emt 0:01:14]} 11. h4 {[%emt 0:00:32]} Qc7 {[%emt 0:00:41]} 12. Bf4 {[%emt 0:00:05]} Rfc8 $1 {[%emt 0:00:21][%mdl 4] is recently more successful than 12...d4. C00: French: Unusual White 2nd moves.} 13. h5 {[%emt 0:00:40]} h6 {[%emt 0:00:43] [#]} 14. Ne3 $146 {[%emt 0:13:15]} ({Predecessor:} 14. N1h2 Qd8 15. Qd2 Bf8 16. g4 Ne7 17. g5 Nf5 18. Ng4 hxg5 19. Bxg5 Be7 20. Bf4 {0-1 (64) Ghasi,A (2485)-Harvey,M (2440) Chess.com INT 2020}) 14... Nf8 {[%emt 0:08:45]} ({Don't take} 14... Ndxe5 15. Nxe5 (15. Nxd5 exd5 16. Nxe5 Nxe5 $11) 15... Nxe5 16. Ng4 $16) 15. c3 {[%emt 0:26:25]} Qd8 {[%emt 0:03:50]} 16. Qd2 {[%emt 0:08:32]} Nh7 {[%emt 0:01:11]} 17. Rad1 $1 {[%emt 0:00:04]} b5 {[%emt 0:03:23]} 18. c4 {[%emt 0:05:12]} bxc4 {[%emt 0:14:23]} 19. dxc4 {[%emt 0:00:02]} d4 {[%emt 0:00:06]} 20. Nc2 {[%emt 0:00:08]} Rab8 {[%emt 0:00:57]} 21. b3 {[%emt 0:00:39]} a5 {[%emt 0:00:41][%cal Oa5a4]} 22. a4 {[%emt 0:00:07][%cal Ba2a4,Ba4b5][%mdl 32]} Bg5 {[%emt 0:10:48]} 23. Na3 {[%emt 0:04:12]} Na7 {[%emt 0:10:47] [#] And now ...Bxf3 would win.} 24. Nb5 {[%emt 0:00:48]} Nxb5 {[%emt 0:00:05]} (24... Bxf3 $11 25. Bxf3 Nc6) 25. axb5 $16 {[%emt 0:00:05]} Bxf4 {[%emt 0:09:41]} 26. Qxf4 {[%emt 0:00:11]} Qb6 {[%emt 0:00:16]} 27. Ra1 {[%emt 0:00:17] White is more active.} Rf8 {[%emt 0:00:21]} 28. Ra2 {[%emt 0:06:45]} Rbd8 {[%emt 0:03:16]} 29. Qd2 {[%emt 0:01:45]} Ra8 {[%emt 0:04:06]} 30. Rea1 {[%emt 0:01:54][%cal Ra2a5]} Qc7 {[%emt 0:01:15]} (30... Be4 $16) 31. Rxa5 $18 {[%emt 0:06:19]} Bxf3 {[%emt 0:01:28]} 32. Rxa8 {[%emt 0:01:31]} Rxa8 {[%emt 0:00:32]} 33. Rxa8+ {[%emt 0:00:06]} Bxa8 {[%emt 0:00:02]} 34. Bxa8 {[%emt 0:00:07][%mdl 4096] Endgame KQB-KQN} Nf8 {[%emt 0:04:03]} 35. f4 {[%emt 0:02:38]} Qa7 {[%emt 0:00:44]} 36. Be4 {[%emt 0:04:23]} Nd7 {[%emt 0:01:48]} 37. Kh2 {[%emt 0:01:40]} f6 {[%emt 0:04:48]} (37... Kf8 $142 38. Bc6 Kg8) 38. exf6 {[%emt 0:02:18]} Nxf6 {[%emt 0:00:07] [#]} 39. Bf3 {[%emt 0:01:47]} Qa3 {[%emt 0:00:41]} (39... Kf8 $142 40. b4 Kf7) 40. Qc2 {[%emt 0:00:00] Hoping for b6.} Qb4 {[%emt 0:00:00]} 41. Kg2 {[%emt 0:02:57]} Qa5 {[%emt 0:05:36]} 42. Kf2 {[%emt 0:03:41]} (42. Qe2 $142 Kf7 43. g4) 42... Kf8 {[%emt 0:02:36]} (42... Kf7 {might work better.} 43. Qg6+ Kg8) 43. Ke2 $2 {[%emt 0:02:50]} (43. Qe2 $18) 43... Ke7 {[%emt 0:01:50]} (43... Qa1 $1 $14) 44. Kf2 {[%emt 0:01:35]} (44. Kf1 $142) 44... Kf8 $1 {[%emt 0:00:27]} 45. Kg2 {[%emt 0:02:44]} Kg8 $1 {[%emt 0:01:49]} 46. Qe2 {[%emt 0:02:59]} Kf7 {[%emt 0:01:34]} 47. Qc2 {[%emt 0:05:28]} Kg8 $1 {[%emt 0:30:01] Weighted Error Value: White=0.45/Black=0.28 (precise)} 1/2-1/2

[Event "Romanian Superleague 2022"]
[Site "Oradea"]
[Date "2022.09.25"]
[Round "5.30"]
[White "Berescu, Alin-Mile"]
[Black "Antonica, Dragos-Andrei"]
[Result "1-0"]
[ECO "C11"]
[WhiteElo "2440"]
[BlackElo "2321"]
[Annotator "TA"]
[PlyCount "137"]
[EventDate "2022.09.21"]
[EventType "team-tourn"]
[EventCountry "ROU"]
[SourceTitle "playchess.com"]
[Source "ChessBase"]
[SourceQuality "1"]
[TimeControl "40/5400+30:1800+30"]

{[%evp 13,137,0,0,0,32,33,83,90,121,122,160,143,163,52,48,0,0,0,0,0,0,-55,-55,-54,-33,-52,50,41,53,53,27,0,0,0,0,14,10,-9,144,137,136,127,141,142,133,142,280,274,270,275,286,253,262,264,259,245,237,133,137,111,118,114,213,218,187,179,184,138,168,137,528,327,541,541,533,533,491,533,425,290,279,272,176,185,988,950,985,941,911,898,877,870,870,861,813,842,795,592,584,296,564,531,712,490,788,677,862,781,4449,6279,6156,6156,6087,5065,9836,2604,1690,1362,6649,6835,6206,4615,5406,4681,1643,1096]} 1. e4 {[%emt 0:00:17]} e6 {[%emt 0:00:09]} 2. d4 {[%emt 0:00:08]} d5 {[%emt 0:00:04]} 3. Nc3 {[%emt 0:00:37]} Nf6 {[%emt 0:00:40]} 4. e5 {[%emt 0:00:52]} Nfd7 {[%emt 0:00:09]} 5. f4 {[%emt 0:00:12]} c5 {[%emt 0:00:20]} 6. Nf3 {[%emt 0:00:09]} Nc6 {[%emt 0:00:22]} 7. Be3 {[%emt 0:01:05]} Qb6 {[%emt 0:01:05]} 8. Na4 {[%emt 0:03:11] C11: French: Classical System: 4 e5 and 4 Bg5 dxe4.} Qc7 {[%emt 0:00:31]} 9. Nxc5 {[%emt 0:03:39] Nd3 is the strong threat.} Nxc5 {[%emt 0:10:40]} (9... Nxd4 $1 $14 10. Bxd4 Nxc5) 10. dxc5 $16 {[%emt 0:00:43] [#] White is better.} Bd7 $146 {[%emt 0:01:15]} ({Predecessor:} 10... Qa5+ 11. Qd2 Qxd2+ 12. Nxd2 d4 13. Bf2 Bxc5 14. Nb3 Bb4+ 15. Ke2 O-O 16. Rd1 Rd8 {½-½ (41) Stukenborg,R (1308)-Doepper,A (906) Arendsee 2009}) 11. c3 {[%emt 0:05:30]} f6 {[%emt 0:15:46]} 12. exf6 {[%emt 0:14:18]} gxf6 {[%emt 0:00:14]} 13. f5 {[%emt 0:00:53]} (13. Bd3 $18) 13... e5 $1 $14 {[%emt 0:21:42]} 14. Nh4 {[%emt 0:14:14]} (14. Qxd5 $14 Ne7 15. Qc4) 14... O-O-O $11 {[%emt 0:08:06][%cal Od5d4]} 15. Qxd5 {[%emt 0:01:21]} Ne7 $1 {[%emt 0:06:07][%csl LRd5,LRf5][%cal Bc6e7,Be7d5,Bd5f4,Bf4d3][%mdl 32]} ({Don't do} 15... Bxf5 16. Qf3 Be6 17. Be2 $16 (17. Qxf6 Qd7 $16)) 16. Qf7 {[%emt 0:08:54]} Qc6 {[%emt 0:04:48] White must now prevent ...Qe4.} 17. Bd3 {[%emt 0:08:39] Against Qe4} (17. Qc4 $1 $11) 17... Be8 $1 $15 {[%emt 0:05:15][%mdl 1024] Black has compensation.} 18. Qc4 {[%emt 0:00:36]} Nd5 {[%emt 0:05:12]} 19. Bf2 {[%emt 0:02:09]} Bf7 {[%emt 0:01:11]} (19... Nf4 $15 20. Be2 Qc7) 20. Qb5 {[%emt 0:04:38]} Nf4 {[%emt 0:09:51]} 21. Qxc6+ {[%emt 0:02:06]} bxc6 {[%emt 0:00:01]} 22. Be4 {[%emt 0:12:53]} Bd5 {[%emt 0:02:31]} 23. Bxd5 {[%emt 0:00:18]} Nd3+ {[%emt 0:02:29]} 24. Ke2 {[%emt 0:01:01]} Rxd5 {[%emt 0:00:01]} 25. Rhd1 {[%emt 0:02:58]} e4 {[%emt 0:02:49]} (25... Nxb2 $11 26. Rxd5 cxd5) 26. b4 $1 $16 {[%emt 0:04:16]} Bh6 {[%emt 0:00:02]} 27. Bd4 {[%emt 0:03:02]} Bg5 {[%emt 0:00:32]} 28. g3 {[%emt 0:00:04]} Rhd8 {[%emt 0:01:32][%cal Od3b4]} 29. a3 {[%emt 0:02:10]} Rf8 {[%emt 0:00:57]} (29... R8d7 $16 {was worth a try.} 30. Ng2 Rxf5) 30. Rf1 $18 {[%emt 0:00:58]} Ne5 {[%emt 0:00:31]} 31. Rad1 {[%emt 0:01:14]} Ng4 {[%emt 0:00:31]} 32. h3 {[%emt 0:01:02]} Nh6 {[%emt 0:00:33]} 33. Be3 {[%emt 0:00:32]} Rfd8 {[%emt 0:00:22]} 34. Rxd5 {[%emt 0:01:30]} Rxd5 {[%emt 0:00:05]} 35. Bd4 {[%emt 0:01:00]} (35. c4 $18 Rd3 36. Ng2) 35... Bxh4 $16 {[%emt 0:00:21]} 36. gxh4 {[%emt 0:00:04]} Nxf5 {[%emt 0:00:10][%mdl 4096] Endgame KRB-KRN} 37. Rf4 $1 {[%emt 0:00:20]} Kd7 {[%emt 0:01:26]} (37... Nxd4+ $16 {might work better.} 38. cxd4 f5) 38. Bxf6 $18 {[%emt 0:00:45]} Ng3+ {[%emt 0:00:27] [#]} 39. Ke1 $1 {[%emt 0:00:45]} Nh5 {[%emt 0:00:37]} 40. Rf2 {[%emt 0:00:00]} Rd3 {[%emt 0:00:00]} 41. Bd4 {[%emt 0:04:10] Hoping for Rf5.} Ke6 {[%emt 0:04:22][%mdl 8192] Inhibits Rf5. This move loses the game for Black.} (41... Rxh3 $16 42. a4 (42. Rf7+ Ke6 $16) 42... a6 43. Rf7+ Ke6 44. Rxh7 Nf4) 42. Rf8 {[%emt 0:07:49][%cal Ob4b5] Threatens to win with b5!} Ng3 $2 {[%emt 0:09:11]} (42... Rxh3 {keeps fighting.} 43. Re8+ Kd7 44. Rxe4 Rf3) 43. b5 {[%emt 0:01:19]} cxb5 {[%emt 0:04:14]} 44. c6 {[%emt 0:00:08] Intending c7 and mate.} Rf3 {[%emt 0:02:15]} 45. Rxf3 {[%emt 0:12:05]} exf3 {[%emt 0:00:02] KB-KN} 46. c7 {[%emt 0:00:51]} Kd7 {[%emt 0:00:39]} 47. Kf2 {[%emt 0:00:22]} ({Not} 47. Bxa7 Ne4 $11) 47... Nf5 {[%emt 0:01:47]} 48. Bxa7 {[%emt 0:01:16]} Kxc7 $2 {[%emt 0:01:42]} (48... Nxh4 49. Bb6 Kc8) 49. h5 {[%emt 0:00:05]} Kb7 {[%emt 0:02:18]} 50. Bc5 {[%emt 0:01:29]} Kc6 {[%emt 0:00:05]} 51. Bf8 {[%emt 0:00:22]} Nh4 {[%emt 0:02:16]} 52. Be7 {[%emt 0:01:26]} Nf5 {[%emt 0:00:02]} 53. Bf6 {[%emt 0:00:14]} Kd5 {[%emt 0:00:48]} 54. Kxf3 {[%emt 0:00:04]} Ke6 {[%emt 0:01:08]} 55. Bh8 {[%emt 0:00:04]} Nd6 {[%emt 0:00:38]} 56. Bd4 {[%emt 0:00:46]} Nc4 $2 {[%emt 0:00:27] [#]} (56... Kf5 57. Bg7 Ne8) 57. Bc5 $1 {[%emt 0:00:09] White is clearly winning.} Kf5 {[%emt 0:00:17]} 58. Bf8 {[%emt 0:00:50]} Ke5 {[%emt 0:03:09]} (58... Na5 $142 59. Ke3 Ke5 60. Bg7+ Ke6) 59. Kg4 {[%emt 0:00:16]} Nd2 {[%emt 0:01:02]} 60. Kg5 {[%emt 0:00:49] And now Kh6 would win.} Ne4+ {[%emt 0:00:36]} 61. Kh6 {[%emt 0:00:20]} Ng3 {[%emt 0:00:49]} 62. Bc5 {[%emt 0:01:15]} Kf6 {[%emt 0:01:14]} 63. Bf2 {[%emt 0:01:00]} Ne4 {[%emt 0:00:10]} 64. Bd4+ {[%emt 0:00:20]} Kf7 {[%emt 0:00:09]} 65. Kxh7 {[%emt 0:00:10]} Ng5+ {[%emt 0:00:06]} 66. Kh6 {[%emt 0:00:07]} Nf3 {[%emt 0:01:44]} 67. Bf2 {[%emt 0:01:17]} Kf6 {[%emt 0:00:10]} 68. Be3 {[%emt 0:00:11]} Kf7 {[%emt 0:00:32]} 69. Bd4 {[%emt 0:00:05] Weighted Error Value: White=0.25 (precise) /Black=0.35} 1-0

[Event "Romanian Superleague 2022"]
[Site "Oradea"]
[Date "2022.09.26"]
[Round "6.1"]
[White "Tarlev, Konstantin"]
[Black "Nguyen, Thai Dai Van"]
[Result "1/2-1/2"]
[ECO "D37"]
[WhiteElo "2576"]
[BlackElo "2627"]
[Annotator "TA"]
[PlyCount "40"]
[EventDate "2022.09.21"]
[EventType "team-tourn"]
[EventCountry "ROU"]
[SourceTitle "playchess.com"]
[Source "ChessBase"]
[SourceQuality "1"]
[TimeControl "40/5400+30:1800+30"]

{[%evp 13,40,10,14,10,14,14,14,14,11,11,11,11,15,0,0,0,0,0,0,0,0,0,0,0,0,0,0,0,0]} 1. d4 {[%emt 0:05:01]} Nf6 {[%emt 0:00:14]} 2. c4 {[%emt 0:00:05]} e6 {[%emt 0:00:07]} 3. Nf3 {[%emt 0:00:03]} d5 {[%emt 0:00:10]} 4. Nc3 {[%emt 0:00:08]} Be7 {[%emt 0:00:18]} 5. Bf4 {[%emt 0:01:13]} O-O {[%emt 0:00:12]} 6. e3 {[%emt 0:03:21]} Nbd7 {[%emt 0:00:47]} 7. c5 {[%emt 0:01:55]} Nh5 {[%emt 0:00:24] The position is equal.} 8. Bd3 {[%emt 0:00:55] D37: Queen's Gambit Declined: 5 Bf4.} Nxf4 {[%emt 0:00:40]} 9. exf4 {[%emt 0:00:03]} b6 {[%emt 0:00:09]} 10. b4 {[%emt 0:00:42]} a5 {[%emt 0:00:10]} 11. a3 {[%emt 0:00:04]} c6 {[%emt 0:00:35]} 12. O-O {[%emt 0:01:22]} Ba6 {[%emt 0:00:10] seems to push 12...Qc7 aside.} 13. g3 {[%emt 0:11:37]} Bf6 {[%emt 0:00:55]} 14. Ne5 {[%emt 0:24:39]} Bxe5 {[%emt 0:05:15]} 15. fxe5 {[%emt 0:00:07]} Bxd3 {[%emt 0:01:43]} 16. Qxd3 {[%emt 0:00:04]} f6 {[%emt 0:00:26]} 17. f4 {[%emt 0:07:31]} fxe5 {[%emt 0:01:45]} 18. fxe5 {[%emt 0:00:39] [#]} Rxf1+ $146 {[%emt 0:00:10]} ({Predecessor:} 18... axb4 19. axb4 Rxf1+ 20. Qxf1 b5 21. h4 Nf8 22. Qc1 Rxa1 23. Qxa1 h5 24. Kf2 Ng6 {½-½ (39) Kudrya,A-Boulanger,M (2178) ICCF email 2018}) 19. Rxf1 {[%emt 0:00:50]} axb4 {[%emt 0:01:23]} 20. axb4 {[%emt 0:00:04]} b5 {[%emt 0:01:39] A balanced but interesting game.  Weighted Error Value: White=0.02 (flawless) /Black=0.01 (flawless)} 1/2-1/2